fUSD/lending_fUSD_20251028
["ID","MTS","AMOUNT","RATE_DAILY","PERIOD"]
[392533210,1761621034184,-153.532405,0.00031027,31]
[392533211,1761621034194,-151.0,0.00031027,31]
[392533212,1761621034204,-151.0,0.00031027,31]
[392533213,1761621034214,-151.0,0.00031027,31]
[392533214,1761621034224,-153.942934,0.00031027,31]
[392533215,1761621034234,-334.35,0.00031054,2]
[392533216,1761621034244,-160.3891186,0.00031073,4]
[392533217,1761621034254,-524.68639578,0.00031073,5]
[392533218,1761621034264,-506.78592388,0.00031073,5]
[392533219,1761621034273,-151.66150688,0.00031095,2]
[392533220,1761621034283,-176.16,0.00031134,2]
[392533221,1761621034293,-379.1097,0.00031151,2]
[392533222,1761621034305,-2353.78664888,0.00031161,2]
[392533223,1761621038352,-1052.97,0.00028393,2]
[392533228,1761621040601,-1808.705,0.00028393,2]
[392533229,1761621040611,-324.909197,0.00030008,31]
[392533230,1761621040621,-324.909197,0.00031027,31]
[392533231,1761621040630,-29287.67642091,0.00031161,2]
[392533232,1761621040639,-509.02808786,0.00031164,2]
[392533233,1761621040649,-379.1097,0.0003118,2]
[392533234,1761621040659,-16112.0,0.000312,2]
[392533235,1761621040679,-275.13,0.00031225,2]
[392533236,1761621040692,-5000.0,0.00031225,2]
[392533237,1761621040701,-500.0,0.00031264,5]
[392533238,1761621040710,-501.11402236,0.00031264,5]
[392533239,1761621040719,-500.0,0.00031264,5]
[392533240,1761621040728,-334.35,0.00031264,2]
[392533241,1761621040738,-308.0,0.000313,2]
[392533242,1761621040747,-168.0,0.00031421,2]
[392533243,1761621040762,-152.0,0.00031439,6]
[392533244,1761621040771,-714.34,0.00031445,2]
[392533245,1761621040781,-697.12,0.00031445,2]
[392533246,1761621040790,-697.12,0.00031445,2]
[392533247,1761621040799,-697.12,0.00031445,2]
[392533248,1761621040808,-697.12,0.00031445,2]
[392533249,1761621040817,-183.8,0.00031445,2]
[392533250,1761621040826,-168.0,0.00031451,2]
[392533251,1761621040835,-500.0,0.00031473,5]
[392533252,1761621040844,-500.0,0.00031473,5]
[392533253,1761621040853,-334.35,0.00031474,2]
[392533254,1761621040862,-151.0,0.00031474,31]
[392533255,1761621040871,-168.0,0.00031489,2]
[392533256,1761621040880,-14987.1833349,0.00031497,3]
[392533257,1761621040889,-500.0,0.00031507,2]
[392533258,1761621040898,-451.0,0.00031507,60]
[392533259,1761621040907,-500.0,0.00031507,2]
[392533260,1761621040915,-904.0,0.00031507,60]
[392533261,1761621040924,-150.0,0.00031507,60]
[392533262,1761621040933,-150.0,0.00031507,60]
[392533263,1761621040942,-500.0,0.00031507,60]
[392533264,1761621040952,-150.0,0.00031507,60]
[392533266,1761621040961,-266.76506165,0.00031507,60]
[392533268,1761621040971,-500.0,0.00031507,60]
[392533270,1761621040981,-152.21184132,0.00031507,60]
[392533272,1761621040991,-150.0,0.00031507,60]
[392533274,1761621041001,-150.0,0.00031507,60]
[392533276,1761621041012,-1822.0,0.00031507,60]
[392533278,1761621041021,-500.0,0.00031507,2]
[392533280,1761621041031,-150.0,0.00031507,2]
[392533282,1761621041040,-500.0,0.00031507,60]
[392533283,1761621041049,-150.0,0.00031507,2]
[392533284,1761621041059,-154.49996226,0.00031507,60]
[392533285,1761621041068,-500.0,0.00031507,60]
[392533286,1761621041078,-500.0,0.00031507,60]
[392533287,1761621041088,-500.0,0.00031507,30]
[392533288,1761621041098,-500.0,0.00031507,60]
[392533289,1761621041109,-150.0,0.00031507,60]
[392533291,1761621041119,-500.0,0.00031507,60]
[392533292,1761621041127,-300.0,0.00031507,37]
[392533293,1761621041138,-166.92,0.00031571,2]
[392533294,1761621041147,-500.0,0.00031644,2]
[392533295,1761621041156,-451.0,0.00031644,60]
[392533296,1761621041165,-500.0,0.00031644,2]
[392533297,1761621041175,-904.0,0.00031644,60]
[392533298,1761621041184,-153.77726958,0.00031644,60]
[392533299,1761621041193,-150.0,0.00031644,60]
[392533300,1761621041203,-558.93526409,0.00031644,60]
[392533301,1761621041211,-190.41914364,0.00031644,60]
[392533302,1761621041220,-556.83781408,0.00031644,60]
[392533303,1761621041229,-150.0,0.00031644,60]
[392533304,1761621041239,-158.21323199,0.00031644,60]
[392533305,1761621041248,-1822.0,0.00031644,60]
[392533306,1761621041258,-509.39598057,0.00031644,60]
[392533307,1761621041268,-500.0,0.00031644,60]
[392533308,1761621041277,-500.0,0.00031644,60]
[392533309,1761621041286,-500.50188258,0.00031644,30]
[392533310,1761621041295,-500.0,0.00031644,60]
[392533311,1761621041304,-152.60867024,0.00031644,60]
[392533312,1761621041313,-500.0,0.00031644,60]
[392533313,1761621041323,-300.0,0.00031644,37]
[392533314,1761621041336,-379.10971,0.0003168,2]
[392533315,1761621041345,-334.35,0.00031684,2]
[392533316,1761621041354,-5515.0,0.000317,3]
[392533317,1761621041363,-155.42159205,0.00031711,15]
[392533318,1761621041372,-564.0,0.00031726,2]
[392533319,1761621041382,-563.0,0.00031756,2]
[392533320,1761621041391,-563.0,0.0003176,2]
[392533321,1761621041400,-500.0,0.00031781,2]
[392533322,1761621041409,-451.0,0.00031781,60]
[392533323,1761621041419,-500.0,0.00031781,2]
[392533324,1761621041428,-904.0,0.00031781,60]
[392533325,1761621041437,-150.0,0.00031781,60]
[392533326,1761621041446,-150.0,0.00031781,60]
[392533327,1761621041456,-1572.66697354,0.00031781,60]
[392533351,1761621128467,507.86317987,0.00037382,50]
[392533354,1761621157506,198.1,0.00021,3]
[392533356,1761621208221,161.0,0.00021,3]
[392533400,1761621606068,195.0,0.0002764,120]
[392533406,1761621729808,285.90972101,0.00037381,50]
[392533408,1761621908151,6213.35778278,0.00015,2]
[392533409,1761621908177,6213.35778278,0.00015,2]
[392533410,1761621908203,6213.35778278,0.00015,2]
[392533411,1761621908229,6213.35778278,0.00015,2]
[392533412,1761621908253,6213.35778278,0.00015,2]
[392533413,1761621908278,6213.35778278,0.00015,2]
[392533414,1761621908304,6213.35778278,0.00015,2]
[392533415,1761621908328,6213.35778278,0.00015,2]
[392533416,1761621908352,6213.35778278,0.00015,2]
[392533417,1761621908376,6213.35778278,0.00015,2]
[392533418,1761621909068,-273.07678363,0.00015,2]
[392533419,1761621911151,-228.4215338,0.00015,2]
[392533420,1761621915563,-171.24428178,0.00015,2]
[392533421,1761621917947,-269.2122126,0.00015,2]
[392533422,1761621920759,-166.66666668,0.00015,2]
[392533423,1761621922956,-250.0,0.00015,2]
[392533424,1761621926406,-222.29365977,0.00015,2]
[392533425,1761621930587,-371.41704153,0.00015,2]
[392533426,1761621932626,-300.0,0.00015,2]
[392533427,1761621946861,208.047,0.00037381,50]
[392533428,1761621982011,1067.293317,0.00014925,2]
[392533432,1761622017613,5000.00452491,0.000162,5]
[392533437,1761622035629,-204.1533604,0.00014999,2]
[392533438,1761622035652,-31.77799041,0.00014999,2]
[392533440,1761622066796,-118.22200959,0.00014999,2]
[392533441,1761622066817,-131.77799041,0.00014999,2]
[392533442,1761622068797,-348.23602795,0.00014999,2]
[392533453,1761622216394,-132.98598164,0.00014999,2]
[392533454,1761622216418,-25.78401836,0.00014999,2]
[392533456,1761622219902,-158.45030834,0.00014999,2]
[392533457,1761622222171,-208.0721138,0.00014999,2]
[392533458,1761622224206,-181.88716151,0.00014999,2]
[392533460,1761622229115,-258.33960339,0.00014999,2]
[392533472,1761622231435,-367.4667946,0.00014999,2]
[392533474,1761622231444,-300.0,0.00014999,2]
[392533477,1761622231454,-9353.46223613,0.00015,2]
[392533490,1761622234548,19159.04,0.00031507,120]
[392533495,1761622237580,-51886.28019187,0.00015,2]
[392533496,1761622237592,-923.61610295,0.00015,2]
[392533501,1761622239738,-53399.91474033,0.00015,2]
[392533502,1761622239747,-541.0,0.00016499,2]
[392533503,1761622239757,-356.54395,0.0002293,2]
[392533504,1761622239767,-356.54396,0.0002343,2]
[392533505,1761622239776,-151.0,0.00023891,2]
[392533506,1761622239786,-356.54396,0.0002393,2]
[392533507,1761622239795,-151.0,0.00024186,2]
[392533508,1761622239804,-356.54395,0.0002443,2]
[392533509,1761622239815,-151.0,0.00024482,2]
[392533510,1761622239824,-151.0,0.00024661,2]
[392533511,1761622239834,-356.54396,0.0002493,2]
[392533512,1761622239843,-356.54396,0.0002543,2]
[392533513,1761622239852,-476.88268571,0.0002608,2]
[392533514,1761622239866,-300.0,0.00027484,2]
[392533515,1761622239876,-300.0,0.00027484,2]
[392533516,1761622239885,-300.0,0.00027484,2]
[392533517,1761622239894,-253.90417528,0.00027484,2]
[392533518,1761622239904,-178.9,0.00028757,30]
[392533519,1761622239914,-150.0,0.00028907,2]
[392533520,1761622239924,-172.22,0.000291,2]
[392533521,1761622239934,-353.87,0.00029114,2]
[392533522,1761622239944,-239.928,0.00029409,2]
[392533523,1761622239953,-3491.0,0.00029409,2]
[392533524,1761622239963,-1593.0,0.00029409,2]
[392533525,1761622239972,-606.0,0.00029409,2]
[392533526,1761622239982,-1313.0,0.00029409,2]
[392533527,1761622239992,-1271.0,0.00029409,2]
[392533529,1761622240002,-818.0,0.00029409,2]
[392533530,1761622240011,-904.0,0.00029409,2]
[392533531,1761622240021,-1186.0,0.00029409,2]
[392533532,1761622240030,-400.0,0.00029409,14]
[392533533,1761622240039,-505.34674532,0.000295,2]
[392533534,1761622240049,-500.0,0.000295,5]
[392533536,1761622240059,-500.0,0.000295,5]
[392533538,1761622240068,-500.0,0.000295,5]
[392533540,1761622240077,-502.75543171,0.000295,5]
[392533542,1761622240086,-500.0,0.000295,5]
[392533544,1761622240095,-503.08011421,0.000295,5]
[392533546,1761622240105,-605.83822171,0.00029633,5]
[392533548,1761622240114,-503.2182199,0.00029633,5]
[392533550,1761622240123,-500.0,0.00029633,5]
[392533552,1761622240132,-400.0,0.00029683,14]
[392533554,1761622240142,-3080.21814794,0.00029715,2]
[392533556,1761622240151,-2751.0,0.00029768,2]
[392533558,1761622240160,-9999.99,0.00029815,2]
[392533560,1761622240169,-7710.67,0.00029815,2]
[392533562,1761622240178,-150.99,0.00029815,2]
[392533564,1761622240188,-1531.55,0.00029815,2]
[392533566,1761622240197,-2903.36,0.00029815,2]
[392533568,1761622240207,-203.58963477,0.000299,2]
[392533570,1761622240216,-200.0,0.00029924,2]
[392533572,1761622240225,-400.0,0.00029957,14]
[392533574,1761622240235,-1000.0,0.00030048,5]
[392533576,1761622240244,-1000.0,0.00030048,5]
[392533578,1761622240253,-500.0,0.00030048,5]
[392533580,1761622240262,-500.0,0.00030048,5]
[392533582,1761622240271,-1000.0,0.00030181,5]
[392533584,1761622240282,-400.0,0.00030231,14]
[392533586,1761622240291,-400.02,0.00030505,14]
[392533588,1761622240303,-3080.21814787,0.00030542,2]
[392533590,1761622240313,-1500.0,0.00030596,5]
[392533592,1761622240322,-151.0,0.00030642,2]
[392533594,1761622240331,-151.0,0.00030642,2]
[392533596,1761622240340,-157.30807833,0.00030642,2]
[392533598,1761622240349,-170.57,0.00030652,26]
[392533600,1761622240359,-2598.79,0.0003066,2]
[392533602,1761622240368,-564.0,0.00030686,7]
[392533604,1761622240378,-1138.19294308,0.00030729,5]
[392533606,1761622240387,-610.0,0.00030738,2]
[392533608,1761622240397,-563.0,0.0003084,2]
[392533610,1761622240406,-336.06743902,0.00031,5]
[392533612,1761622240415,-506.65740522,0.00031144,5]
[392533615,1761622240426,-563.0,0.00031265,2]
[392533617,1761622240435,-284.25192049,0.00031312,2]
[392533619,1761622240444,-3080.21814787,0.00031369,2]
[392533620,1761622240453,-500.0,0.00031401,7]
[392533622,1761622240463,-521.7,0.00031401,7]
[392533625,1761622240473,-364.11,0.0003144,2]
[392533627,1761622240483,-686.5959,0.000316,2]
[392533629,1761622240492,-2500.0,0.000316,2]
[392533631,1761622240501,-242.6841,0.000316,2]
[392533633,1761622240510,-466.76956837,0.00031616,2]
[392533635,1761622240519,-3409.4065731,0.00031651,2]
[392533637,1761622240529,-18795.4205506,0.00031651,2]
[392533639,1761622240538,-1933.3960862,0.00031651,2]
[392533640,1761622240548,-300.0,0.00031689,10]
[392533643,1761622240558,-300.0,0.00031689,10]
[392533644,1761622240567,-59469.143473,0.0003169,3]
[392533647,1761622240578,-300.0,0.00031699,10]
[392533649,1761622240586,-300.0,0.00031699,10]
[392533651,1761622240595,-300.0,0.00031699,10]
[392533652,1761622240606,-224714.5696673,0.000317,2]
[392533654,1761622240617,-500.0,0.000317,15]
[392533656,1761622240627,-493.0,0.00031717,2]
[392533658,1761622240637,-150.57,0.00031745,2]
[392533660,1761622240647,-414.74,0.00031745,2]
[392533663,1761622240657,-150.0,0.00031745,2]
[392533665,1761622240667,-150.0,0.00031745,2]
[392533667,1761622240676,-300.0,0.00031779,10]
[392533669,1761622240687,-14867.2858683,0.0003178,3]
[392533671,1761622240696,-500.0,0.00031781,2]
[392533673,1761622240706,-420.0,0.00031781,60]
[392533675,1761622240716,-150.0,0.00031781,60]
[392533677,1761622240725,-500.0,0.00031781,2]
[392533679,1761622240735,-896.0,0.00031781,60]
[392533681,1761622240744,-500.0,0.00031781,2]
[392533683,1761622240753,-150.0,0.00031781,2]
[392533685,1761622240763,-150.0,0.00031781,60]
[392533687,1761622240772,-150.0,0.00031781,60]
[392533689,1761622240781,-500.0,0.00031781,60]
[392533691,1761622240790,-1605.0,0.00031781,60]
[392533692,1761622240799,-178.9,0.00031784,30]
[392533694,1761622240808,-493.0,0.00031786,2]
[392533695,1761622240818,-989.0,0.000318,2]
[392533696,1761622240828,-2000.0,0.000318,2]
[392533697,1761622240837,-334.35,0.00031894,2]
[392533698,1761622240847,-500.0,0.00031918,2]
[392533699,1761622240856,-420.0,0.00031918,60]
[392533700,1761622240869,-150.0,0.00031918,60]
[392533701,1761622240879,-500.0,0.00031918,2]
[392533702,1761622240888,-896.0,0.00031918,60]
[392533703,1761622240898,-150.0,0.00031918,60]
[392533704,1761622240908,-500.0,0.00031918,60]
[392533705,1761622240917,-1605.0,0.00031918,60]
[392533706,1761622240926,-250.10169646,0.00031918,60]
[392533707,1761622240937,-150.0,0.00031918,60]
[392533708,1761622240946,-300.0,0.0003193,10]
[392533709,1761622240955,-14867.2858683,0.00031931,3]
[392533710,1761622240964,-500.0,0.0003194,2]
[392533711,1761622240973,-500.0,0.0003194,2]
[392533712,1761622240983,-500.0,0.0003194,2]
[392533713,1761622240992,-500.0,0.0003194,2]
[392533714,1761622241001,-532.46979818,0.0003194,2]
[392533715,1761622241010,-150.0,0.0003194,2]
[392533716,1761622241019,-300.0,0.0003194,2]
[392533717,1761622241029,-173.14,0.00031961,2]
[392533718,1761622241038,-152.0,0.00031965,7]
[392533719,1761622241048,-500.0,0.00031974,15]
[392533720,1761622241058,-270.0,0.00032,2]
[392533721,1761622241067,-155.70589222,0.00032,60]
[392533722,1761622241076,-376.42066452,0.00032,120]
[392533723,1761622241087,-161.26114982,0.00032,120]
[392533724,1761622241096,-154.4671419,0.00032012,17]
[392533725,1761622241106,-238.0,0.0003202,2]
[392533726,1761622241115,-14724.9818385,0.00032022,3]
[392533727,1761622241124,-249.47638207,0.00032023,7]
[392533728,1761622241132,-300.0,0.0003203,10]
[392533729,1761622241141,-59469.143473,0.00032031,3]
[392533730,1761622241150,-44174.9455156,0.00032031,3]
[392533731,1761622241159,-300.0,0.0003204,10]
[392533732,1761622241169,-151.0,0.00032041,31]
[392533733,1761622241177,-292.418278,0.00032041,31]
[392533734,1761622241186,-74336.4293413,0.00032041,3]
[392533735,1761622241195,-73624.9091926,0.00032041,3]
[392533736,1761622241204,-500.0,0.00032041,2]
[392533737,1761622241212,-500.0,0.00032041,2]
[392533738,1761622241221,-500.0,0.00032041,2]
[392533739,1761622241230,-500.0,0.00032041,2]
[392533740,1761622241238,-500.0,0.00032041,2]
[392533741,1761622241247,-500.0,0.00032041,2]
[392533742,1761622241256,-500.0,0.00032041,2]
[392533743,1761622241265,-500.0,0.00032041,2]
[392533744,1761622241274,-376.04502948,0.00032041,2]
[392533745,1761622241283,-151.241,0.00032044,2]
[392533746,1761622241292,-14724.9818385,0.00032045,3]
[392533747,1761622241301,-300.0,0.0003205,10]
[392533748,1761622241309,-300.0,0.0003205,10]
[392533749,1761622241318,-151.0,0.00032051,31]
[392533750,1761622241327,-151.0,0.00032051,31]
[392533751,1761622241336,-151.0,0.00032051,31]
[392533752,1761622241345,-153.310651,0.00032051,31]
[392533753,1761622241355,-292.418278,0.00032051,31]
[392533754,1761622241365,-134707.3221,0.00032051,2]
[392533755,1761622241375,-1000.0,0.00032051,2]
[392533756,1761622241384,-32624.12490275,0.00032051,2]
[392533757,1761622241394,-500.0,0.00032055,2]
[392533758,1761622241404,-420.0,0.00032055,60]
[392533760,1761622241412,-150.0,0.00032055,60]
[392533761,1761622241422,-500.0,0.00032055,2]
[392533762,1761622241430,-896.0,0.00032055,60]
[392533763,1761622241440,-150.0,0.00032055,60]
[392533764,1761622241450,-500.0,0.00032055,60]
[392533765,1761622241459,-1605.0,0.00032055,60]
[392533766,1761622241469,-232.09966199,0.00032055,60]
[392533767,1761622241479,-501.8220215,0.00032073,5]
[392533768,1761622241488,-500.0,0.00032077,2]
[392533769,1761622241498,-603.27925462,0.00032077,2]
[392533770,1761622241507,-150.0,0.00032077,2]
[392533771,1761622241516,-300.0,0.00032077,2]
[392533772,1761622241533,-334.35,0.00032104,2]
[392533773,1761622241544,-300.0,0.0003213,10]
[392533774,1761622241554,-14867.2858683,0.00032131,3]
[392533775,1761622241563,-204.29842878,0.00032141,2]
[392533776,1761622241572,-318.168763,0.0003215,10]
[392533777,1761622241581,-166.68,0.00032162,2]
[392533778,1761622241591,-14724.9818385,0.00032162,3]
[392533779,1761622241600,-14867.2858683,0.00032172,3]
[392533780,1761622241609,-500.0,0.00032173,5]
[392533781,1761622241619,-500.0,0.00032173,5]
[392533782,1761622241628,-292.418278,0.00032175,31]
[392533783,1761622241637,-500.0,0.00032192,2]
[392533784,1761622241647,-420.0,0.00032192,60]
[392533785,1761622241656,-150.0,0.00032192,60]
[392533786,1761622241666,-500.0,0.00032192,2]
[392533787,1761622241675,-896.0,0.00032192,60]
[392533788,1761622241685,-150.0,0.00032192,60]
[392533789,1761622241695,-583.63315831,0.00032192,60]
[392533790,1761622241704,-1605.0,0.00032192,60]
[392533791,1761622241714,-3080.21814787,0.00032197,2]
[392533792,1761622241725,-300.20486061,0.000322,2]
[392533793,1761622241735,-500.0,0.00032214,2]
[392533794,1761622241745,-150.0,0.00032214,2]
[392533795,1761622241755,-300.0,0.00032214,2]
[392533796,1761622241764,-500.0,0.00032248,15]
[392533797,1761622241774,-176.16,0.00032259,2]
[392533798,1761622241784,-14724.9818385,0.00032269,3]
[392533799,1761622241794,-150.0,0.00032277,4]
[392533800,1761622241804,-158.4525155,0.00032277,4]
[392533801,1761622241813,-150.0,0.00032277,4]
[392533802,1761622241823,-150.0,0.00032277,4]
[392533803,1761622241832,-150.0,0.00032277,4]
[392533804,1761622241842,-155.64407104,0.00032277,4]
[392533805,1761622241851,-152.89870192,0.00032277,4]
[392533806,1761622241868,-150.0,0.00032277,4]
[392533807,1761622241878,-150.0,0.00032277,4]
[392533808,1761622241887,-14867.2858683,0.00032279,3]
[392533809,1761622241901,-300.0,0.00032298,10]
[392533810,1761622241913,-879.69583969,0.000323,2]
[392533811,1761622241922,-5004.0,0.000323,3]
[392533812,1761622241932,-238.0,0.00032307,2]
[392533813,1761622242193,-334.35,0.00032314,2]
[392533814,1761622242203,-500.0,0.00032329,2]
[392533815,1761622242216,-420.0,0.00032329,60]
[392533816,1761622242225,-160.44163728,0.00032329,60]
[392533817,1761622242237,-500.0,0.00032329,2]
[392533818,1761622242246,-896.0,0.00032329,60]
[392533819,1761622242256,-150.0,0.00032329,60]
[392533820,1761622242266,-1605.0,0.00032329,60]
[392533821,1761622242276,-14867.2858683,0.00032331,3]
[392533822,1761622242285,-292.418278,0.00032341,31]
[392533823,1761622242295,-292.418278,0.00032341,31]
[392533824,1761622242304,-1415.0,0.00032349,2]
[392533825,1761622242313,-500.0,0.00032351,2]
[392533826,1761622242323,-150.0,0.00032351,2]
[392533827,1761622242332,-300.0,0.00032351,2]
[392533828,1761622242342,-825.0,0.00032371,5]
[392533829,1761622242353,-323.71418185,0.00032373,5]
[392533830,1761622242364,-14724.9818385,0.00032378,3]
[392533832,1761622242374,-14867.2858683,0.00032389,3]
[392533833,1761622242384,-300.0,0.00032396,10]
[392533834,1761622242397,-3491.0,0.00032409,2]
[392533835,1761622242408,-650.45,0.00032409,2]
[392533838,1761622242423,-606.0,0.00032409,2]
[392533839,1761622242432,-1313.0,0.00032409,2]
[392533840,1761622242444,-1271.0,0.00032409,2]
[392533841,1761622242454,-818.0,0.00032409,2]
[392533842,1761622242464,-904.0,0.00032409,2]
[392533843,1761622242474,-1186.0,0.00032409,2]
[392533844,1761622242489,-800.0,0.00032417,7]
[392533845,1761622242498,-466.76956834,0.00032425,2]
[392533846,1761622242507,-14724.9818385,0.00032456,3]
[392533847,1761622242517,-174.97,0.0003246,2]
[392533848,1761622242527,-471.27420338,0.0003246,2]
[392533849,1761622242536,-500.0,0.00032464,7]
[392533850,1761622242545,-500.0,0.00032466,2]
[392533851,1761622242555,-420.0,0.00032466,60]
[392533852,1761622242564,-500.0,0.00032466,2]
[392533853,1761622242573,-896.0,0.00032466,60]
[392533854,1761622242583,-188.86768995,0.00032466,60]
[392533855,1761622242592,-1605.0,0.00032466,60]
[392533856,1761622242601,-14867.2858683,0.0003247,3]
[392533857,1761622242610,-292.418278,0.0003248,31]
[392533858,1761622242624,-292.418268,0.0003248,31]
[392533859,1761622242634,-500.0,0.00032488,2]
[392533860,1761622242644,-208.62916787,0.00032488,2]
[392533861,1761622242654,-300.0,0.00032488,2]
[392533862,1761622242663,-300.0,0.00032489,10]
[392533863,1761622242672,-152.0,0.00032491,8]
[392533864,1761622242682,-600.0,0.00032495,7]
[392533865,1761622242691,-600.0,0.00032507,7]
[392533866,1761622242700,-500.0,0.00032522,15]
[392533867,1761622242710,-334.35,0.00032524,2]
[392533868,1761622242719,-14724.9818385,0.00032524,3]
[392533869,1761622242733,-181.52,0.00032541,2]
[392533870,1761622242742,-414.24,0.00032541,2]
[392533871,1761622242751,-150.0,0.00032541,2]
[392533872,1761622242762,-1417.0,0.00032545,2]
[392533873,1761622242772,-174.97,0.00032574,2]
[392533874,1761622242781,-14867.2858683,0.00032584,3]
[392533875,1761622242791,-740.38,0.000326,10]
[392533876,1761622242801,-14724.9818385,0.00032602,3]
[392533877,1761622242811,-500.0,0.00032603,2]
[392533878,1761622242820,-420.0,0.00032603,60]
[392533879,1761622242832,-500.0,0.00032603,2]
[392533880,1761622242841,-896.0,0.00032603,60]
[392533881,1761622242851,-1605.0,0.00032603,60]
[392533882,1761622242862,-500.0,0.00032608,7]
[392533883,1761622242874,-14867.2858683,0.00032612,3]
[392533884,1761622242884,-306.3819957,0.00032614,10]
[392533885,1761622242894,-600.0,0.00032617,7]
[392533886,1761622242904,-500.0,0.00032625,2]
[392533887,1761622242913,-300.0,0.00032625,2]
[392533888,1761622242923,-325.56,0.00032635,2]
[392533889,1761622242932,-700.0,0.00032678,7]
[392533890,1761622242944,-500.0,0.00032688,7]
[392533891,1761622242954,-166.66,0.00032717,2]
[392533892,1761622242963,-504.22205196,0.00032721,5]
[392533893,1761622242973,-150.0,0.0003273,2]
[392533894,1761622242985,-334.35,0.00032734,2]
[392533895,1761622242994,-500.0,0.0003274,2]
[392533897,1761622243004,-420.0,0.0003274,60]
[392533898,1761622243013,-236.29892311,0.0003274,2]
[392533899,1761622243023,-896.0,0.0003274,60]
[392533900,1761622243034,-1605.0,0.0003274,60]
[392533901,1761622243043,-313.92842958,0.00032762,2]
[392533902,1761622243052,-300.0,0.00032762,2]
[392533903,1761622243062,-3959.53363803,0.0003278,2]
[392533904,1761622243071,-174.97,0.0003279,2]
[392533905,1761622243080,-500.0,0.00032796,15]
[392533906,1761622243090,-150.0,0.000328,2]
[392533907,1761622243102,-244.67780979,0.000328,2]
[392533908,1761622243111,-364.73,0.000328,30]
[392533909,1761622243120,-150.0,0.00032813,2]
[392533910,1761622243129,-800.0,0.00032815,7]
[392533911,1761622243140,-500.0,0.00032823,7]
[392533912,1761622243150,-14724.9818385,0.00032867,3]
[392533913,1761622243160,-800.0,0.00032874,7]
[392533914,1761622243169,-754.74,0.00032876,2]
[392533915,1761622243178,-754.74,0.00032876,2]
[392533916,1761622243188,-754.74,0.00032876,2]
[392533917,1761622243198,-754.74,0.00032876,2]
[392533918,1761622243207,-300.0,0.00032877,120]
[392533919,1761622243216,-500.0,0.00032877,2]
[392533920,1761622243226,-420.0,0.00032877,60]
[392533921,1761622243246,-896.0,0.00032877,60]
[392533922,1761622243255,-1605.0,0.00032877,60]
[392533923,1761622243265,-207.72244669,0.00032877,60]
[392533924,1761622243275,-500.0,0.00032877,60]
[392533925,1761622243284,-500.0,0.00032885,7]
[392533926,1761622243294,-500.0,0.00032888,7]
[392533927,1761622243303,-300.0,0.00032899,2]
[392533928,1761622243314,-702.08,0.000329,14]
[392533929,1761622243324,-5515.0,0.000329,5]
[392533930,1761622243334,-800.0,0.00032913,7]
[392533931,1761622243343,-600.0,0.00032915,7]
[392533932,1761622243352,-334.35,0.00032944,2]
[392533933,1761622243362,-150.0,0.00032973,5]
[392533934,1761622243371,-150.0,0.00032994,7]
[392533935,1761622243380,-800.0,0.00032998,7]
[392533936,1761622243390,-792.8106276,0.00033,3]
[392533937,1761622243399,-154.12899864,0.00033,120]
[392533938,1761622243409,-5349.01740552,0.00033,2]